bitfinex-derivatives/quotes_SOLF0:USTF0_20250624
["timestamp","ask_amount","ask_price","bid_price","bid_amount"]
[1750743058645,35.3,144.23,144.17,3.45838019]
[1750743058843,35.3,144.23,144.18,3.45850902]
[1750743059736,35.3,144.23,144.21,6.9294]
[1750743060031,35.3,144.23,144.18,3.45850902]
[1750743060032,35.3,144.23,144.2,3.45850902]
[1750743060431,35.3,144.26,144.2,3.45850902]
[1750743060932,35.3,144.26,144.23,6.9284]
[1750743061138,5.74363478,144.25,144.2,3.45850902]
[1750743061542,5.74363478,144.25,144.24,6.9284]
[1750743061945,35.3,144.26,144.24,6.9284]
[1750743064244,35.3,144.26,144.25,6.9279]
[1750743064942,6.46087027,144.29,144.27,6.9268]
[1750743064943,41.76087027,144.29,144.27,6.9268]
[1750743065246,6.46087027,144.29,144.27,6.9268]
[1750743066040,35.3,144.3,144.27,6.9268]
[1750743066345,35.3,144.3,144.28,6.9264]
[1750743067043,6.46087027,144.34,144.25,3.45706226]
[1750743067255,42.3014,144.35,144.29,3.45706226]
[1750743067633,49.2246,144.35,144.3,6.9251]
[1750743067950,49.2246,144.35,144.28,3.45706226]
[1750743068131,49.2246,144.35,144.25,35.28]
[1750743068335,3.45706226,144.33,144.27,3.45706226]
[1750743068640,45.75846226,144.35,144.27,3.45706226]
[1750743068842,5.75997369,144.34,144.29,6.926]
[1750743069040,45.75846226,144.35,144.27,3.45706226]
[1750743069245,5.75995403,144.34,144.27,3.45706226]
[1750743069445,6.9242,144.33,144.28,6.9262]
[1750743070343,6.9246,144.32,144.27,6.9268]
[1750743070545,35.28,144.31,144.27,6.9268]
[1750743070848,45.66246226,144.31,144.25,3.45706226]
[1750743071640,45.66246226,144.31,144.27,6.927]
[1750743072350,42.2054,144.31,144.27,6.927]
[1750743073552,42.2054,144.31,144.24,3.45706226]
[1750743073553,35.28,144.31,144.24,3.45706226]
[1750743074354,42.2051,144.31,144.27,6.9268]
[1750743075853,6.9256,144.3,144.27,6.9268]
[1750743076254,35.28,144.31,144.27,6.9268]
[1750743077055,42.2054,144.31,144.27,6.9268]
[1750743077556,42.2055,144.31,144.27,6.9268]
[1750743077756,35.28,144.31,144.24,3.45706226]
[1750743078757,42.2052,144.31,144.24,3.45706226]
[1750743079257,42.2052,144.31,144.26,6.9271]
[1750743079757,6.9256,144.3,144.26,6.9271]
[1750743081355,35.28,144.31,144.22,42.057]
[1750743081561,35.28,144.31,144.16,65.45706226]
[1750743081562,3.45706226,144.28,144.2,3.45706226]
[1750743081746,3.45706226,144.26,144.18,3.45706226]
[1750743081948,35.28,144.27,144.16,8.11626226]
[1750743081949,3.45706226,144.24,144.16,8.11626226]
[1750743082158,37.5972,144.27,144.14,3.45706226]
[1750743082159,3.45706226,144.22,144.14,3.45706226]
[1750743082353,35.28,144.21,144.14,3.45706226]
[1750743082557,6.9307,144.2,144.16,6.9318]
[1750743082856,35.28,144.21,144.14,3.45706226]
[1750743083254,35.28,144.21,144.17,6.9314]
[1750743083650,35.28,144.21,144.14,3.45706226]
[1750743083852,35.28,144.25,144.18,3.45928264]
[1750743084258,35.28,144.25,144.21,6.9295]
[1750743084651,35.28,144.25,144.18,3.45928264]
[1750743084854,42.208,144.25,144.2,6.9302]
[1750743085054,42.208,144.25,144.18,3.45928264]
[1750743085353,35.28,144.25,144.18,3.45928264]
[1750743086062,35.28,144.25,144.21,6.9295]
[1750743086452,35.28,144.25,144.18,3.45928264]
[1750743087861,35.28,144.25,144.22,6.9291]
[1750743090063,42.208,144.25,144.22,6.9291]
[1750743090261,35.28,144.26,144.16,35.28]
[1750743090564,39.8789,144.26,144.19,3.45928264]
[1750743091361,46.8067,144.26,144.22,6.9291]
[1750743091964,6.928,144.25,144.21,6.9297]
[1750743092165,10.38728264,144.25,144.21,6.9297]
[1750743092765,10.38728264,144.25,144.17,3.45928264]
[1750743092766,6.9285,144.24,144.2,6.9302]
[1750743092959,6.9285,144.24,144.17,3.45928264]
[1750743093162,3.45928264,144.25,144.17,3.45928264]
[1750743093362,10.38738264,144.25,144.17,3.45928264]
[1750743093562,10.38738264,144.25,144.21,6.9296]
[1750743094667,3.45928264,144.25,144.17,3.45928264]
[1750743095670,6.9286,144.24,144.2,6.9301]
[1750743096173,6.9291,144.23,144.2,6.9301]
[1750743096471,35.28,144.22,144.2,6.9301]
[1750743098769,35.28,144.22,144.19,6.9306]
[1750743099071,42.2097,144.22,144.17,3.45928264]
[1750743100764,35.28,144.22,144.15,3.45928264]
[1750743101375,3.45928264,144.21,144.13,3.45928264]
[1750743101578,3.4611204,144.21,144.13,3.4611204]
[1750743102077,6.9309,144.19,144.16,6.932]
[1750743102374,3.4611204,144.21,144.16,6.932]
[1750743102974,6.9305,144.2,144.16,6.932]
[1750743104472,3.4611204,144.19,144.11,3.4611204]
[1750743104672,3.4611204,144.17,144.09,3.4611204]
[1750743104879,6.9332,144.14,144.09,3.4611204]
[1750743105066,35.48,144.14,144.09,3.4611204]
[1750743105375,42.4136,144.14,144.09,3.4611204]
[1750743105572,3.4611204,144.13,144.0,598.72]
[1750743105768,3.4611204,144.13,144.01,39.9596]
[1750743105967,6.9343,144.12,144.07,6.9363]
[1750743106168,3.4611204,144.1,144.03,3.4611204]
[1750743106476,35.48,144.09,144.03,3.4611204]
[1750743106675,35.48,144.09,144.01,2.3698]
[1750743106877,3.4611204,144.08,144.01,2.3698]
[1750743108079,3.4611204,144.08,144.04,6.938]
[1750743108476,35.48,144.09,144.02,3.4611204]
[1750743108984,35.48,144.09,144.06,6.9367]
[1750743109283,38.9411204,144.09,144.02,3.4611204]
[1750743110074,45.8768204,144.09,144.05,6.9375]
[1750743111576,38.9411204,144.09,144.01,5.8309204]
[1750743112282,35.48,144.09,144.01,5.8309204]
[1750743112581,42.4157,144.09,144.05,6.9371]
[1750743113780,35.48,144.09,144.05,6.9371]
[1750743113979,35.48,144.09,144.06,6.9371]
[1750743114286,35.48,144.09,144.01,5.8309204]
[1750743114586,35.48,144.09,144.05,6.9374]
[1750743115183,35.48,144.09,144.06,6.937]
[1750743116487,35.48,144.09,144.01,5.8309204]
[1750743116488,42.4157,144.09,144.05,6.9375]
[1750743117187,42.4157,144.09,144.01,5.8309204]
[1750743117374,35.48,144.09,144.06,6.9371]
[1750743118488,42.4158,144.09,144.06,6.9371]
[1750743119189,35.48,144.09,144.02,3.46601555]
[1750743119690,35.48,144.09,144.07,6.9365]
[1750743120686,38.94601555,144.09,144.06,6.9369]
[1750743121489,38.94601555,144.09,144.07,6.9365]
[1750743122686,45.88171555,144.09,144.06,6.9369]
[1750743122992,38.94601555,144.09,144.01,2.3698]
[1750743123488,6.9363,144.08,144.01,2.3698]
[1750743124683,6.9363,144.08,144.04,6.9377]
[1750743125483,35.48,144.09,144.02,3.46601555]
[1750743125894,42.4158,144.09,144.05,6.9372]
[1750743126691,6.9362,144.08,144.04,6.9379]
[1750743126990,6.9362,144.08,144.02,3.46601555]
[1750743127991,6.9366,144.07,144.04,6.9378]
[1750743129392,3.46601555,144.08,144.01,2.3698]
[1750743129393,6.9372,144.06,144.03,6.9384]
[1750743129700,35.48,144.05,143.97,4.4796]
[1750743129902,42.4178,144.05,144.01,6.9392]
[1750743130195,3.46601555,144.04,143.97,4.4796]
[1750743130502,6.9388,144.03,143.99,6.9401]
[1750743131800,35.48,144.05,143.96,5.67221555]
[1750743131992,3.46601555,144.04,143.96,5.67221555]
[1750743132585,3.46601555,144.04,144.01,6.9391]
[1750743133299,3.46601555,144.04,143.96,5.67221555]
[1750743134796,3.46601555,144.04,144.01,6.9392]
[1750743135303,35.48,144.05,144.03,6.9385]
[1750743135510,35.48,144.05,144.0,3.46601555]
[1750743136005,35.48,144.07,144.02,3.46601555]
[1750743136696,35.48,144.07,144.06,6.937]
[1750743144106,35.48,144.1,144.07,6.9364]
[1750743144504,35.48,144.1,144.04,3.46518737]
[1750743145305,35.48,144.1,144.07,6.9363]
[1750743148302,35.48,144.1,144.08,6.9361]
[1750743150307,35.48,144.1,144.07,6.9364]
[1750743150508,35.48,144.1,144.05,3.46518737]
[1750743150808,35.48,144.1,144.08,6.9358]
[1750743151008,35.48,144.1,144.05,3.46518737]
[1750743151205,14.33965764,144.15,144.07,3.46518737]
[1750743151419,41.18330142,144.14,144.08,3.46338873]
[1750743151608,35.48,144.14,144.08,3.46338873]
[1750743151808,35.48,144.14,144.12,6.9339]
[1750743153317,35.48,144.14,144.13,6.9337]
[1750743155213,35.48,144.14,144.12,6.934]
[1750743155715,35.48,144.14,144.13,6.9337]
[1750743158023,35.48,144.14,144.12,6.9341]
[1750743158215,35.48,144.14,144.1,3.46258248]
[1750743159723,35.48,144.14,144.13,6.9337]
[1750743160620,35.34,144.17,144.15,6.9327]
[1750743161525,35.34,144.17,144.16,6.9323]
[1750743162419,35.34,144.2,144.19,6.9308]
[1750743167127,35.34,144.23,144.17,3.45975827]
[1750743167322,35.34,144.24,144.17,3.45975827]
[1750743167513,35.34,144.24,144.19,3.45975827]
[1750743168027,42.2898,144.25,144.24,6.9284]
[1750743168625,42.2898,144.25,144.23,6.9287]
[1750743169917,42.2898,144.25,144.16,3.45975827]
[1750743169918,45.74955827,144.25,144.16,3.45975827]
[1750743170117,3.45975827,144.23,144.16,3.45975827]
[1750743171725,3.45975827,144.23,144.2,6.9302]
[1750743172026,10.38865827,144.23,144.15,3.45975827]
[1750743172227,10.38865827,144.23,144.18,6.9309]
[1750743173219,10.38865827,144.23,144.13,35.34]
[1750743173220,10.38995827,144.21,144.17,6.9316]
[1750743173524,35.34,144.2,144.17,6.9316]
[1750743174026,42.2704,144.2,144.16,6.9321]
[1750743174229,35.34,144.2,144.16,6.9321]
[1750743175919,35.34,144.2,144.11,38.79975827]
[1750743175920,3.45975827,144.19,144.11,38.79975827]
[1750743176226,10.47085827,144.19,144.11,38.79975827]
[1750743176427,6.9313,144.18,144.14,6.933]
[1750743178729,6.9318,144.17,144.14,6.933]
[1750743179132,35.34,144.16,144.13,6.9336]
[1750743180027,35.34,144.16,144.12,6.934]
[1750743180028,42.2724,144.16,144.12,6.934]
[1750743182234,35.34,144.16,144.13,6.9336]
[1750743183222,35.34,144.16,144.09,3.45975827]
[1750743183223,42.2723,144.16,144.11,6.9346]
[1750743183428,35.34,144.16,144.09,3.45975827]
[1750743184329,35.34,144.16,144.13,6.9336]
[1750743185334,35.34,144.16,144.08,35.34]
[1750743185335,35.34,144.16,144.14,6.9332]
[1750743186437,35.34,144.16,144.11,3.45975827]
[1750743186734,35.34,144.22,144.15,3.45975827]
[1750743186938,6.9285,144.24,144.2,6.93]
[1750743187145,35.34,144.23,144.2,6.93]
[1750743189037,35.34,144.23,144.19,6.9307]
[1750743189939,38.79975827,144.23,144.18,6.9312]
[1750743190239,38.79975827,144.23,144.15,3.45975827]
[1750743190935,3.45975827,144.21,144.12,35.32]
[1750743191234,3.45975827,144.21,144.18,6.9312]
[1750743191440,6.9296,144.22,144.18,6.9312]
[1750743192341,45.72875827,144.23,144.19,6.9307]
[1750743192541,42.269,144.23,144.19,6.9307]
[1750743195446,35.34,144.23,144.17,3.45975827]
[1750743196745,35.34,144.23,144.2,6.9302]
[1750743198442,38.79975827,144.23,144.16,37.6954]
[1750743198739,3.45975827,144.21,144.13,38.77975827]
[1750743199050,3.45975827,144.21,144.16,6.9319]
[1750743199538,6.9307,144.2,144.16,6.9319]
[1750743199744,3.45975827,144.21,144.16,6.9319]
[1750743200139,5.74002609,144.2,144.16,6.9319]
[1750743200341,3.45975827,144.21,144.16,6.9319]
[1750743200540,5.74002609,144.2,144.16,6.9319]
[1750743200739,35.32,144.19,144.15,6.9326]
[1750743200948,38.77975827,144.19,144.1,2.1963]
[1750743201147,3.45975827,144.17,144.1,2.1963]
[1750743201448,3.45975827,144.17,144.12,6.9342]
[1750743201940,6.9323,144.16,144.12,6.9342]
[1750743202141,35.32,144.15,144.12,6.9342]
[1750743202748,42.2529,144.15,144.11,6.9345]
[1750743203150,35.32,144.15,144.13,6.9337]
[1750743203345,35.32,144.15,144.09,43.22055827]
[1750743203648,35.32,144.18,144.11,3.45975827]
[1750743203948,35.32,144.18,144.13,6.9337]
[1750743203949,42.2517,144.18,144.13,6.9337]
[1750743204344,35.32,144.18,144.11,3.45975827]
[1750743204850,35.32,144.18,144.14,6.9328]
[1750743205151,42.2516,144.18,144.14,6.9328]
[1750743205440,38.77975827,144.18,144.13,6.9336]
[1750743206043,38.77975827,144.18,144.12,6.934]
[1750743206566,6.932,144.17,144.12,6.934]
[1750743207243,6.932,144.17,144.13,6.9336]
[1750743209850,6.9323,144.16,144.13,6.9336]
[1750743210049,38.77975827,144.18,144.13,6.9336]
[1750743210250,35.32,144.18,144.14,6.9332]
[1750743210439,45.71125827,144.18,144.14,6.9332]
[1750743211048,6.9319,144.17,144.14,6.9332]
[1750743211761,42.2514,144.18,144.15,6.9327]
[1750743212449,42.2514,144.18,144.11,3.45975827]
[1750743212450,42.2514,144.18,144.14,6.933]
[1750743215753,6.9318,144.17,144.14,6.933]
[1750743215955,3.45975827,144.17,144.09,43.22055827]
[1750743216752,6.9325,144.16,144.09,43.22055827]
[1750743217054,3.45975827,144.17,144.09,43.22055827]
[1750743217353,10.39185827,144.17,144.09,43.22055827]
[1750743217549,6.9321,144.17,144.11,3.45975827]
[1750743217750,35.32,144.18,144.11,3.45975827]
[1750743218153,35.32,144.18,144.13,3.45975827]
[1750743218650,35.32,144.18,144.15,6.9325]
[1750743219753,35.32,144.18,144.14,6.9331]
[1750743219960,35.32,144.18,144.11,3.45975827]
[1750743220258,35.32,144.18,144.14,6.9329]
[1750743220558,42.2515,144.18,144.14,6.9329]
[1750743221358,42.2515,144.18,144.15,6.9327]
[1750743221750,35.32,144.18,144.15,6.9327]
[1750743222150,35.32,144.18,144.14,6.9331]
[1750743222346,42.2513,144.18,144.14,6.9331]
[1750743223661,35.32,144.18,144.15,6.9326]
[1750743224755,42.2514,144.18,144.14,6.933]
[1750743226760,42.2514,144.18,144.15,6.9327]
[1750743227563,35.32,144.18,144.15,6.9327]
[1750743228461,35.32,144.18,144.16,6.9321]
[1750743229059,35.32,144.18,144.17,6.9318]
[1750743229256,598.8,144.2,144.15,3.45975827]
[1750743229469,2.2231,144.22,144.17,3.45975827]
[1750743229470,35.34,144.22,144.17,3.45975827]
[1750743229658,35.34,144.25,144.19,3.45975827]
[1750743229962,5.71822099,144.24,144.19,3.45975827]
[1750743230173,6.9285,144.24,144.19,3.45975827]
[1750743230361,35.34,144.25,144.19,3.45975827]
[1750743230558,5.71742891,144.24,144.19,3.45975827]
[1750743230758,35.34,144.25,144.19,3.45975827]
[1750743231057,5.71041895,144.24,144.19,3.45975827]
[1750743231257,35.34,144.25,144.19,3.45975827]
[1750743231668,42.2683,144.25,144.21,6.9298]
[1750743233070,12.66836324,144.24,144.2,6.9299]
[1750743233271,6.9286,144.24,144.2,6.9299]
[1750743233756,6.9286,144.24,144.18,3.45975827]
[1750743233962,6.9286,144.24,144.21,6.9298]
[1750743234162,42.2681,144.25,144.21,6.9298]
[1750743237476,35.34,144.25,144.17,38.79975827]
[1750743237678,14.29549066,144.24,144.17,35.34]
[1750743237879,5.73742825,144.23,144.16,3.45975827]
[1750743238178,6.9292,144.23,144.19,6.9305]
[1750743238478,6.9292,144.23,144.16,3.45975827]
[1750743239778,10.38825827,144.24,144.16,3.45975827]
[1750743239972,3.45975827,144.24,144.16,3.45975827]
[1750743240172,35.34,144.25,144.18,3.45975827]
[1750743240378,5.74159614,144.24,144.18,3.45975827]
[1750743240683,35.34,144.25,144.18,3.45975827]
[1750743240980,5.74159803,144.24,144.18,3.45975827]
[1750743241282,35.34,144.25,144.18,3.45975827]
[1750743241490,5.74137877,144.24,144.18,3.45975827]
[1750743241673,6.9287,144.24,144.2,6.9299]
[1750743242076,6.9287,144.24,144.17,3.45916615]
[1750743242077,6.46454268,144.27,144.25,6.9276]
[1750743242384,50.26716277,144.3,144.22,3.45877247]
[1750743242584,10.83298896,144.29,144.22,3.45877247]
[1750743242881,5.73920517,144.28,144.22,3.45877247]
[1750743243068,38.79877247,144.3,144.22,3.45877247]
[1750743243273,5.73914384,144.29,144.22,3.45877247]
[1750743243584,5.73914384,144.28,144.22,3.45877247]
[1750743243783,9.19380005,144.27,144.2,38.79700716]
[1750743243987,41.07679289,144.26,144.2,38.79700716]
[1750743244179,35.34,144.26,144.2,3.45700716]
[1750743244381,35.34,144.26,144.17,35.34]
[1750743244382,3.45700716,144.25,144.18,3.45700716]
[1750743244879,3.45700716,144.25,144.2,6.9303]
[1750743245778,3.45700716,144.25,144.21,6.9298]
[1750743246375,10.38520716,144.25,144.21,6.9298]
[1750743248594,3.45700716,144.25,144.18,3.45700716]
[1750743250288,6.9281,144.25,144.21,6.9295]
[1750743250689,6.9281,144.25,144.22,6.9293]
[1750743250884,45.72470716,144.26,144.22,6.9293]
[1750743251081,5.73420535,144.25,144.22,6.9293]
[1750743251285,45.72470716,144.26,144.22,6.9293]
[1750743251495,5.73415426,144.25,144.22,6.9293]
[1750743251697,45.72470716,144.26,144.22,6.9293]
[1750743251994,5.73415557,144.25,144.22,6.9293]
[1750743252194,45.72470716,144.26,144.22,6.9293]
[1750743253197,45.72470716,144.26,144.23,6.9286]
[1750743253403,2.2318,144.29,144.17,35.34]
[1750743253695,2.2318,144.29,144.19,2.2308]
[1750743253894,2.2318,144.29,144.26,6.9275]
[1750743254595,2.2318,144.29,144.22,3.45605296]
[1750743254796,9.18771251,144.28,144.2,5.86945296]
[1750743255000,5.74585296,144.28,144.2,5.86945296]
[1750743255185,6.9271,144.27,144.23,6.9285]
[1750743255389,35.3,144.26,144.23,6.9285]
[1750743255601,35.3,144.26,144.2,5.86945296]
[1750743255793,35.3,144.26,144.22,3.45605296]
[1750743256897,35.3,144.29,144.22,3.45605296]
[1750743257992,5.72865296,144.34,144.26,3.45605296]
[1750743258193,35.3,144.32,144.26,3.45605296]
[1750743259596,35.3,144.32,144.29,6.926]
[1750743264903,42.2246,144.32,144.28,6.9264]
[1750743265095,42.2246,144.32,144.25,3.45519757]
[1750743265794,42.2246,144.32,144.28,6.9262]
[1750743267503,35.3,144.32,144.29,6.926]
[1750743268105,42.2246,144.32,144.28,6.9263]
[1750743268308,35.3,144.32,144.27,3.45519757]
[1750743268503,35.3,144.32,144.24,3.45519757]
[1750743268504,35.3,144.32,144.28,3.45519757]
[1750743268698,35.3,144.32,144.29,6.9257]
[1750743269005,35.3,144.32,144.28,3.45519757]
[1750743269200,35.3,144.32,144.29,6.9259]
[1750743270199,35.3,144.32,144.3,6.9255]
[1750743271309,38.75519757,144.32,144.25,3.45519757]
[1750743271698,6.9256,144.3,144.27,6.9269]
[1750743271899,6.9256,144.3,144.25,3.45519757]
[1750743272404,6.9256,144.3,144.22,35.28]
[1750743272712,6.9256,144.3,144.26,6.9273]
[1750743274104,35.3,144.32,144.26,3.45519757]
[1750743274301,35.3,144.32,144.28,3.45519757]
[1750743274706,35.3,144.32,144.29,6.9257]
[1750743275901,35.3,144.32,144.3,6.9255]
[1750743276997,35.3,144.32,144.31,6.9251]
[1750743277398,2.2726,144.34,144.31,6.9251]
[1750743279398,35.28,144.35,144.32,6.9244]
[1750743280108,42.2031,144.35,144.31,6.9248]
[1750743283203,42.2031,144.35,144.32,6.9246]
[1750743283713,42.2031,144.35,144.29,3.45519757]
[1750743283714,42.2031,144.35,144.31,6.9249]
[1750743284106,42.2031,144.35,144.29,3.45519757]
[1750743284412,35.28,144.35,144.32,6.9245]
[1750743284813,35.28,144.35,144.29,3.45519757]
[1750743285011,35.28,144.35,144.31,3.45519757]
[1750743285322,35.28,144.38,144.35,6.9229]
[1750743285514,35.28,144.38,144.33,3.45519757]
[1750743286212,35.28,144.38,144.36,6.9224]
[1750743287415,35.28,144.38,144.33,3.45519757]
[1750743287914,35.28,144.38,144.36,6.9223]
[1750743289004,35.28,144.38,144.33,3.45519757]
[1750743289616,35.26,144.41,144.37,3.45519757]
[1750743289916,35.26,144.49,144.39,3.45519757]
[1750743290218,35.26,144.49,144.42,3.45519757]
[1750743290821,35.26,144.49,144.4,35.26]
[1750743291012,42.1768,144.49,144.44,6.9187]
[1750743291317,35.26,144.49,144.4,41.06575091]
[1750743291519,35.26,144.49,144.41,2.2704]
[1750743291716,35.26,144.49,144.45,6.918]
[1750743292423,35.26,144.49,144.41,2.2704]
[1750743292808,35.26,144.49,144.42,3.44715091]
[1750743293006,38.70715091,144.49,144.42,3.44715091]
[1750743293612,12.98166257,144.61,144.48,6.89430182]
[1750743293814,3.44715091,144.72,144.6,3.44715091]
[1750743294122,36.82,144.72,144.58,36.82]
[1750743294313,2.2697,144.71,144.58,36.82]
[1750743294512,2.2697,144.71,144.63,3.44715091]
[1750743294814,3.44715091,144.7,144.61,3.44715091]
[1750743295013,3.44715091,144.68,144.61,3.44715091]
[1750743295313,40.24715091,144.67,144.58,3.44715091]
[1750743295515,36.8,144.66,144.58,3.44715091]
[1750743295919,4.6594,144.65,144.58,3.44715091]
[1750743296109,8.10655091,144.65,144.56,3.44715091]
[1750743296308,2.2697,144.64,144.55,42.53458259]
[1750743296924,2.2697,144.64,144.57,5.73458259]
[1750743297113,2.2697,144.64,144.59,5.73458259]
[1750743297315,4.6594,144.65,144.64,6.9093]
[1750743297620,36.8,144.69,144.61,5.73458259]
[1750743297823,8.11928259,144.73,144.61,5.73458259]
[1750743297824,36.8,144.68,144.61,5.73458259]
[1750743298019,36.8,144.69,144.67,6.9074]
[1750743298231,36.8,144.69,144.61,5.73458259]
[1750743299322,36.8,144.69,144.63,5.73458259]
[1750743299713,36.8,144.69,144.68,6.9074]
[1750743300021,41.383,144.7,144.63,5.73458259]
[1750743300409,41.383,144.7,144.69,6.9069]
[1750743300824,41.383,144.7,144.63,42.51458259]
[1750743301017,41.383,144.7,144.69,6.9069]
[1750743301728,36.8,144.7,144.69,6.9069]
[1750743302529,2.3428,144.72,144.7,6.9061]
[1750743302730,36.78,144.71,144.7,6.9061]
[1750743303925,36.78,144.71,144.61,5.73458259]
[1750743304428,36.78,144.71,144.67,6.9074]
[1750743304625,36.78,144.71,144.61,5.73458259]
[1750743304824,36.78,144.71,144.63,5.73458259]
[1750743305023,36.78,144.71,144.62,5.73458259]
[1750743305225,36.78,144.71,144.6,36.76]
[1750743305531,36.78,144.71,144.62,5.73458259]
[1750743305731,36.78,144.71,144.68,6.907]
[1750743306932,36.78,144.71,144.69,6.9067]
[1750743307736,36.78,144.71,144.68,6.9073]
[1750743308821,36.78,144.71,144.64,5.73458259]
[1750743309022,36.78,144.71,144.66,5.73458259]
[1750743309423,2.3428,144.72,144.7,6.9064]
[1750743309628,38.9461,144.75,144.68,5.73458259]
[1750743309830,38.9461,144.75,144.71,6.9056]
[1750743310338,36.76,144.75,144.68,5.73458259]
[1750743310540,2.4195,144.74,144.69,6.9068]
[1750743310731,8.15408259,144.74,144.64,5.73458259]
[1750743311638,6.9055,144.72,144.67,6.9078]
[1750743311836,6.9055,144.72,144.64,5.73458259]
[1750743311837,36.76,144.71,144.64,5.73458259]
[1750743312233,6.9065,144.7,144.65,6.9088]
[1750743312441,2.2212,144.7,144.65,6.9088]
[1750743312740,2.2137,144.69,144.65,6.9088]
[1750743315539,2.2137,144.69,144.61,8.1347699]
[1750743315740,5.7296699,144.68,144.57,8.0143699]
[1750743315939,36.74,144.67,144.57,8.0143699]
[1750743316142,38.944,144.67,144.57,8.0143699]
[1750743316334,6.9086,144.66,144.6,6.9112]
[1750743316535,38.944,144.67,144.57,8.0143699]
[1750743317040,6.9084,144.66,144.61,6.9103]
[1750743318442,2.2137,144.69,144.61,5.73004352]
[1750743318647,2.2137,144.69,144.64,5.73004352]
[1750743318837,2.2137,144.69,144.67,6.9075]
[1750743319037,36.74,144.7,144.64,5.73004352]
[1750743319338,36.74,144.7,144.66,5.73004352]
[1750743319547,36.74,144.7,144.69,6.9069]
[1750743319946,36.74,144.7,144.66,6.9082]
[1750743320444,36.74,144.7,144.62,5.72884298]
[1750743320746,36.74,144.7,144.67,6.9075]
[1750743321046,36.74,144.7,144.68,6.9073]
[1750743321247,36.74,144.7,144.64,5.72884298]
[1750743323449,36.74,144.7,144.67,6.9075]
[1750743323948,36.74,144.7,144.64,5.72884298]
[1750743324141,36.9,144.76,144.67,5.72641749]
[1750743324339,36.9,144.76,144.69,5.72641749]
[1750743324543,36.9,144.76,144.73,6.9048]
[1750743324744,36.9,144.76,144.69,5.72641749]
[1750743324960,36.9,144.76,144.7,5.72641749]
[1750743325250,36.88,144.79,144.7,5.72641749]
[1750743325449,36.88,144.79,144.72,5.72641749]
[1750743325750,47.13501749,144.83,144.71,2.1912]
[1750743325953,9.31679637,144.81,144.71,44.79761749]
[1750743326246,6.9036,144.76,144.7,6.9063]
[1750743326450,43.7836,144.76,144.7,6.9063]
[1750743326752,4.5286,144.75,144.65,4.4761]
[1750743326949,4.5286,144.75,144.66,5.72550998]
[1750743327153,2.3352,144.75,144.67,5.72479384]
[1750743327450,36.88,144.78,144.74,6.9041]
[1750743327841,36.88,144.78,144.69,36.88]
[1750743328047,47.65665425,144.78,144.69,42.60479384]
[1750743328354,47.65665425,144.78,144.69,5.72479384]
[1750743328656,41.93186041,144.78,144.72,6.9051]
[1750743328850,36.88,144.78,144.72,6.9051]
[1750743329353,6.9031,144.77,144.72,6.9051]
[1750743330458,6.9031,144.77,144.73,6.9048]
[1750743330948,5.07702042,144.76,144.67,5.72479384]
[1750743331148,42.60479384,144.78,144.67,5.72479384]
[1750743331455,5.07698319,144.77,144.66,36.88]
[1750743331655,5.07698319,144.76,144.69,5.72479384]
[1750743331854,36.88,144.78,144.69,5.72479384]
[1750743332150,5.09847283,144.77,144.69,5.72479384]
[1750743332346,5.09847283,144.76,144.69,5.72479384]
[1750743332547,42.60479384,144.78,144.69,5.72479384]
[1750743332747,15.71299216,144.77,144.67,5.72479384]
[1750743333045,6.9042,144.75,144.7,6.906]
[1750743333249,47.00110293,144.74,144.7,6.906]
[1750743333450,47.02034375,144.73,144.7,6.906]
[1750743333651,5.09851648,144.72,144.67,5.72479384]